[Event "*** Titled Tuesday Blitz"]
[Site "Chess.com"]
[Date "2020.10.20"]
[Round "4"]
[White "GiantThresher"]
[Black "scarabee43"]
[Result "1-0"]
[WhiteElo "2825"]
[BlackElo "2462"]
[TimeControl "180+1"]
[EndTime "10:40:26 PDT"]
[Termination "GiantThresher won by checkmate"]

1. e4 {[%clk 0:03:00.9]} 1... c5 {[%clk 0:02:59.7]} 2. Nf3 {[%clk 0:03:00.2]}
2... e6 {[%clk 0:03:00.3]} 3. d4 {[%clk 0:02:59.3]} 3... cxd4 {[%clk 0:03:01]}
4. Nxd4 {[%clk 0:03:00.2]} 4... Nc6 {[%clk 0:03:00.1]} 5. Nc3 {[%clk 0:02:59.7]}
5... Qc7 {[%clk 0:03:00.4]} 6. Be3 {[%clk 0:02:59.9]} 6... a6 {[%clk 0:03:00.8]}
7. a3 {[%clk 0:03:00.3]} 7... b5 {[%clk 0:02:55.7]} 8. Nxc6 {[%clk 0:02:59.6]}
8... Qxc6 {[%clk 0:02:54.7]} 9. Be2 {[%clk 0:02:58.2]} 9... Bb7 {[%clk
0:02:54.3]} 10. O-O {[%clk 0:02:55.7]} 10... Rc8 {[%clk 0:02:54]} 11. Qd3 {[%clk
0:02:46.4]} 11... Bd6 {[%clk 0:02:44.2]} 12. Rad1 {[%clk 0:02:43.8]} 12... Be5
{[%clk 0:02:43.2]} 13. Bd4 {[%clk 0:02:38.4]} 13... d6 {[%clk 0:02:22.2]} 14.
Bxe5 {[%clk 0:02:34.3]} 14... dxe5 {[%clk 0:02:22.4]} 15. Qg3 {[%clk 0:02:35]}
15... Nf6 {[%clk 0:02:19]} 16. Qxe5 {[%clk 0:02:14.9]} 16... O-O {[%clk
0:02:11.3]} 17. Bf3 {[%clk 0:02:14.8]} 17... Rfd8 {[%clk 0:02:05.3]} 18. h3
{[%clk 0:02:14.1]} 18... h6 {[%clk 0:02:02.4]} 19. Qf4 {[%clk 0:02:10.7]} 19...
Qc5 {[%clk 0:01:59.5]} 20. Rxd8+ {[%clk 0:01:55.6]} 20... Rxd8 {[%clk
0:01:58.5]} 21. Rd1 {[%clk 0:01:56.2]} 21... Rxd1+ {[%clk 0:01:55]} 22. Bxd1
{[%clk 0:01:57.1]} 22... e5 {[%clk 0:01:53.8]} 23. Qf3 {[%clk 0:01:43.8]} 23...
Qd4 {[%clk 0:01:51.8]} 24. Qd3 {[%clk 0:01:32.8]} 24... Bxe4 {[%clk 0:01:42.8]}
25. Qxd4 {[%clk 0:01:23.4]} 25... exd4 {[%clk 0:01:42.3]} 26. Nxe4 {[%clk
0:01:17.2]} 26... Nxe4 {[%clk 0:01:43]} 27. Bf3 {[%clk 0:01:18.1]} 27... Nd2
{[%clk 0:01:24.3]} 28. Bb7 {[%clk 0:01:15.6]} 28... a5 {[%clk 0:01:20.6]} 29.
Ba6 {[%clk 0:01:13.3]} 29... b4 {[%clk 0:01:20.5]} 30. axb4 {[%clk 0:01:03.8]}
30... axb4 {[%clk 0:01:20.7]} 31. f3 {[%clk 0:01:02.4]} 31... b3 {[%clk
0:01:14.3]} 32. cxb3 {[%clk 0:01:02.2]} 32... Nxb3 {[%clk 0:01:14.4]} 33. Bc4
{[%clk 0:01:02.7]} 33... Na5 {[%clk 0:01:11.4]} 34. Bd5 {[%clk 0:01:02.5]} 34...
Kf8 {[%clk 0:01:09.9]} 35. b4 {[%clk 0:01:02.6]} 35... Nb7 {[%clk 0:00:58.4]}
36. Bxb7 {[%clk 0:01:01.6]} 36... d3 {[%clk 0:00:56]} 37. Kf2 {[%clk 0:01:02.2]}
37... d2 {[%clk 0:00:56.9]} 38. Ke2 {[%clk 0:01:02.5]} 38... Ke7 {[%clk
0:00:55.4]} 39. Kxd2 {[%clk 0:01:02.7]} 39... Kd6 {[%clk 0:00:55.9]} 40. Kc3
{[%clk 0:01:02.5]} 40... Kc7 {[%clk 0:00:56.6]} 41. Bd5 {[%clk 0:01:02.4]} 41...
f6 {[%clk 0:00:56.5]} 42. Kc4 {[%clk 0:01:03.3]} 42... Kd6 {[%clk 0:00:55.9]}
43. b5 {[%clk 0:01:04.2]} 43... f5 {[%clk 0:00:56.2]} 44. b6 {[%clk 0:01:03.3]}
44... g5 {[%clk 0:00:56.5]} 45. b7 {[%clk 0:01:04.2]} 45... Kc7 {[%clk
0:00:56.7]} 46. Kd4 {[%clk 0:01:05.1]} 46... h5 {[%clk 0:00:56.4]} 47. Ke5
{[%clk 0:01:05.1]} 47... f4 {[%clk 0:00:54.7]} 48. Kf5 {[%clk 0:01:05]} 48... g4
{[%clk 0:00:55.1]} 49. fxg4 {[%clk 0:01:04.1]} 49... hxg4 {[%clk 0:00:55.5]} 50.
hxg4 {[%clk 0:01:05]} 50... Kd6 {[%clk 0:00:54.7]} 51. b8=Q+ {[%clk 0:01:04.5]}
51... Kxd5 {[%clk 0:00:55.2]} 52. Qxf4 {[%clk 0:01:05]} 52... Kc5 {[%clk
0:00:54.6]} 53. Qe4 {[%clk 0:01:05.2]} 53... Kd6 {[%clk 0:00:54.7]} 54. g5
{[%clk 0:01:06.1]} 54... Kc5 {[%clk 0:00:55.2]} 55. g6 {[%clk 0:01:07]} 55...
Kd6 {[%clk 0:00:56]} 56. g7 {[%clk 0:01:07.9]} 56... Kc5 {[%clk 0:00:56.9]} 57.
g8=Q {[%clk 0:01:07.7]} 57... Kd6 {[%clk 0:00:57.8]} 58. Qgd5+ {[%clk
0:01:07.7]} 58... Kc7 {[%clk 0:00:58.7]} 59. Qec4+ {[%clk 0:01:07.9]} 59... Kb6
{[%clk 0:00:59.6]} 60. Qdb5+ {[%clk 0:01:08.2]} 60... Ka7 {[%clk 0:01:00.4]} 61.
Qca4# {[%clk 0:01:09.1]} 1-0

[Event "*** Titled Tuesday Blitz"]
[Site "Chess.com"]
[Date "2020.10.20"]
[Round "4"]
[White "queen_iryna"]
[Black "AccioChess"]
[Result "1/2-1/2"]
[WhiteElo "2311"]
[BlackElo "2438"]
[TimeControl "180+1"]
[EndTime "10:40:29 PDT"]
[Termination "Game drawn by repetition"]

1. e4 {[%clk 0:03:00.9]} 1... c5 {[%clk 0:02:59.5]} 2. Nf3 {[%clk 0:03:00.6]}
2... e6 {[%clk 0:02:58.8]} 3. c4 {[%clk 0:03:00.3]} 3... b6 {[%clk 0:02:58]} 4.
Nc3 {[%clk 0:02:59.1]} 4... Bb7 {[%clk 0:02:52.5]} 5. Be2 {[%clk 0:02:58.8]}
5... Nc6 {[%clk 0:02:51.8]} 6. O-O {[%clk 0:02:57.7]} 6... Nd4 {[%clk
0:02:51.9]} 7. d3 {[%clk 0:02:43.7]} 7... Ne7 {[%clk 0:02:51.5]} 8. Nxd4 {[%clk
0:02:37.7]} 8... cxd4 {[%clk 0:02:51.2]} 9. Nb5 {[%clk 0:02:37.5]} 9... Nc6
{[%clk 0:02:51.3]} 10. f4 {[%clk 0:02:36.1]} 10... a6 {[%clk 0:02:46.3]} 11. Na3
{[%clk 0:02:36.2]} 11... Bxa3 {[%clk 0:02:44.2]} 12. bxa3 {[%clk 0:02:37.1]}
12... f5 {[%clk 0:02:42.8]} 13. Bf3 {[%clk 0:02:27.7]} 13... O-O {[%clk
0:02:41.5]} 14. Bb2 {[%clk 0:02:20.2]} 14... fxe4 {[%clk 0:02:34.8]} 15. Bxe4
{[%clk 0:02:19.5]} 15... Qf6 {[%clk 0:02:19.2]} 16. Qf3 {[%clk 0:02:05.8]} 16...
Rf7 {[%clk 0:01:50.1]} 17. Qf2 {[%clk 0:01:54.6]} 17... Raf8 {[%clk 0:01:47.6]}
18. Bxc6 {[%clk 0:01:50.9]} 18... Bxc6 {[%clk 0:01:42.8]} 19. Bxd4 {[%clk
0:01:33.3]} 19... Qxf4 {[%clk 0:01:14.8]} 20. Qxf4 {[%clk 0:01:32.2]} 20... Rxf4
{[%clk 0:01:15.7]} 21. Bxb6 {[%clk 0:01:27]} 21... h5 {[%clk 0:01:05.4]} 22. Bc5
{[%clk 0:01:13.4]} 22... Rxf1+ {[%clk 0:00:57.3]} 23. Rxf1 {[%clk 0:01:14.3]}
23... Rxf1+ {[%clk 0:00:57.9]} 24. Kxf1 {[%clk 0:01:15.2]} 24... Kf7 {[%clk
0:00:58.3]} 25. g3 {[%clk 0:01:14]} 25... g5 {[%clk 0:00:58.1]} 26. Kf2 {[%clk
0:01:12.3]} 26... Kg6 {[%clk 0:00:58.6]} 27. Be3 {[%clk 0:01:09.6]} 27... Kf5
{[%clk 0:00:58.9]} 28. Bd4 {[%clk 0:01:07.7]} 28... Kg4 {[%clk 0:00:46.7]} 29.
Bf6 {[%clk 0:01:05.4]} 29... Kf5 {[%clk 0:00:45.9]} 30. Bd8 {[%clk 0:01:04]}
30... Kg4 {[%clk 0:00:45.7]} 31. h4 {[%clk 0:00:57.9]} 31... gxh4 {[%clk
0:00:44.3]} 32. gxh4 {[%clk 0:00:58.8]} 32... Kh3 {[%clk 0:00:44.3]} 33. Ke3
{[%clk 0:00:57.9]} 33... Bg2 {[%clk 0:00:40.5]} 34. Kd4 {[%clk 0:00:56]} 34...
Bf1 {[%clk 0:00:39.5]} 35. c5 {[%clk 0:00:53.4]} 35... Kg4 {[%clk 0:00:38.6]}
36. Kc3 {[%clk 0:00:51.3]} 36... Kf5 {[%clk 0:00:38.2]} 37. d4 {[%clk
0:00:51.3]} 37... Ke4 {[%clk 0:00:38.1]} 38. Bf6 {[%clk 0:00:51.3]} 38... Kd5
{[%clk 0:00:37.9]} 39. Be5 {[%clk 0:00:50.4]} 39... Ke4 {[%clk 0:00:37.7]} 40.
Bf6 {[%clk 0:00:50.2]} 40... Kd5 {[%clk 0:00:37.9]} 41. Be5 {[%clk 0:00:50.3]}
41... Ke4 {[%clk 0:00:38.5]} 42. Bf6 {[%clk 0:00:50.3]} 1/2-1/2

[Event "*** Titled Tuesday Blitz"]
[Site "Chess.com"]
[Date "2020.10.20"]
[Round "4"]
[White "Artyom_ChessMate"]
[Black "VitaliyBernadskiy"]
[Result "0-1"]
[WhiteElo "2511"]
[BlackElo "2786"]
[TimeControl "180+1"]
[EndTime "10:40:31 PDT"]
[Termination "VitaliyBernadskiy won by resignation"]

1. e4 {[%clk 0:03:00.9]} 1... e5 {[%clk 0:02:58.4]} 2. Nf3 {[%clk 0:03:00.9]}
2... Nc6 {[%clk 0:02:59.3]} 3. Bb5 {[%clk 0:03:00.9]} 3... g6 {[%clk 0:02:59.3]}
4. d4 {[%clk 0:02:59.4]} 4... exd4 {[%clk 0:03:00.2]} 5. c3 {[%clk 0:02:59.7]}
5... a6 {[%clk 0:02:58]} 6. Bc4 {[%clk 0:02:45.4]} 6... Bg7 {[%clk 0:02:56.4]}
7. cxd4 {[%clk 0:02:37.6]} 7... d6 {[%clk 0:02:56.4]} 8. Nc3 {[%clk 0:02:24.6]}
8... Nf6 {[%clk 0:02:55.6]} 9. O-O {[%clk 0:02:01.8]} 9... O-O {[%clk
0:02:55.1]} 10. h3 {[%clk 0:02:01.9]} 10... Nxe4 {[%clk 0:02:50.9]} 11. Nxe4
{[%clk 0:01:56.3]} 11... d5 {[%clk 0:02:51.2]} 12. Bg5 {[%clk 0:01:56]} 12... f6
{[%clk 0:02:24.5]} 13. Nxf6+ {[%clk 0:01:46.2]} 13... Bxf6 {[%clk 0:02:24.1]}
14. Bxf6 {[%clk 0:01:44.8]} 14... Rxf6 {[%clk 0:02:25]} 15. Bb3 {[%clk 0:01:39]}
15... Be6 {[%clk 0:02:06]} 16. Ne5 {[%clk 0:01:36.6]} 16... Nxe5 {[%clk
0:01:47.6]} 17. dxe5 {[%clk 0:01:37.5]} 17... Rf7 {[%clk 0:01:46.8]} 18. Rc1
{[%clk 0:01:31]} 18... Rc8 {[%clk 0:01:34.3]} 19. Qd4 {[%clk 0:01:26.9]} 19...
c6 {[%clk 0:01:22.2]} 20. f4 {[%clk 0:01:23.7]} 20... Qh4 {[%clk 0:01:21.1]} 21.
Rf3 {[%clk 0:00:57.5]} 21... Rcf8 {[%clk 0:01:14.8]} 22. Rcf1 {[%clk 0:00:51.9]}
22... g5 {[%clk 0:01:14.4]} 23. Bc2 {[%clk 0:00:14.8]} 23... gxf4 {[%clk
0:00:59.6]} 24. g3 {[%clk 0:00:08.1]} 24... Rg7 {[%clk 0:00:50.2]} 25. g4 {[%clk
0:00:04.8]} 25... Bxg4 {[%clk 0:00:45.3]} 26. R3f2 {[%clk 0:00:03.4]} 26...
Bxh3+ {[%clk 0:00:42.8]} 0-1

[Event "*** Titled Tuesday Blitz"]
[Site "Chess.com"]
[Date "2020.10.20"]
[Round "4"]
[White "Orest_Vovk"]
[Black "Oneofmyturns"]
[Result "1-0"]
[WhiteElo "2488"]
[BlackElo "2693"]
[TimeControl "180+1"]
[EndTime "10:40:32 PDT"]
[Termination "Orest_Vovk won by resignation"]

1. h3 {[%clk 0:03:00.9]} 1... d5 {[%clk 0:02:58.3]} 2. e4 {[%clk 0:02:57.5]}
2... dxe4 {[%clk 0:02:57.2]} 3. Nc3 {[%clk 0:02:57.1]} 3... Bf5 {[%clk
0:02:53.2]} 4. Qe2 {[%clk 0:02:57.1]} 4... c6 {[%clk 0:02:41.3]} 5. Nxe4 {[%clk
0:02:56]} 5... e6 {[%clk 0:02:39.3]} 6. Nf3 {[%clk 0:02:55]} 6... Nd7 {[%clk
0:02:38]} 7. d3 {[%clk 0:02:53.1]} 7... Qb6 {[%clk 0:02:31.1]} 8. g4 {[%clk
0:02:51.2]} 8... Bg6 {[%clk 0:02:27.9]} 9. Bg2 {[%clk 0:02:51.2]} 9... Be7
{[%clk 0:02:26.4]} 10. O-O {[%clk 0:02:48.5]} 10... Ngf6 {[%clk 0:02:26.1]} 11.
Be3 {[%clk 0:02:45.5]} 11... Qc7 {[%clk 0:02:24.8]} 12. Nxf6+ {[%clk 0:02:37.6]}
12... Nxf6 {[%clk 0:02:25.7]} 13. Bd4 {[%clk 0:02:32.1]} 13... O-O {[%clk
0:02:17.4]} 14. Be5 {[%clk 0:02:28.1]} 14... Qb6 {[%clk 0:02:15.5]} 15. c3
{[%clk 0:02:20]} 15... Nd5 {[%clk 0:02:10.6]} 16. d4 {[%clk 0:02:16.9]} 16... a5
{[%clk 0:02:03]} 17. a4 {[%clk 0:02:13.2]} 17... Rfe8 {[%clk 0:01:53.3]} 18. Bg3
{[%clk 0:02:10.8]} 18... h6 {[%clk 0:01:26.7]} 19. Ne5 {[%clk 0:02:08]} 19...
Bh7 {[%clk 0:01:27.1]} 20. Nd7 {[%clk 0:01:59.2]} 20... Qd8 {[%clk 0:01:25.9]}
21. Ne5 {[%clk 0:01:58.8]} 21... Bd6 {[%clk 0:01:25.2]} 22. f4 {[%clk
0:01:53.1]} 22... f6 {[%clk 0:01:14.3]} 23. Nd3 {[%clk 0:01:49.1]} 23... Qc7
{[%clk 0:01:13.2]} 24. Rae1 {[%clk 0:01:34.8]} 24... Bxd3 {[%clk 0:01:08]} 25.
Qxd3 {[%clk 0:01:34.7]} 25... Nxf4 {[%clk 0:01:08.7]} 26. Bxf4 {[%clk
0:01:18.9]} 26... Bxf4 {[%clk 0:01:09.6]} 27. Qg6 {[%clk 0:01:16.2]} 27... Bd6
{[%clk 0:00:44.6]} 28. Rxf6 {[%clk 0:01:05.7]} 28... Rf8 {[%clk 0:00:25.3]} 29.
Rfxe6 {[%clk 0:00:54.3]} 29... Rad8 {[%clk 0:00:24.1]} 30. Be4 {[%clk
0:00:39.9]} 30... Rf4 {[%clk 0:00:23.2]} 31. Qh7+ {[%clk 0:00:36.6]} 31... Kf7
{[%clk 0:00:17.9]} 32. Bg6+ {[%clk 0:00:36.1]} 1-0

[Event "*** Titled Tuesday Blitz"]
[Site "Chess.com"]
[Date "2020.10.20"]
[Round "4"]
[White "vaishali2001"]
[Black "FredyMatsuura"]
[Result "0-1"]
[WhiteElo "2582"]
[BlackElo "2396"]
[TimeControl "180+1"]
[EndTime "10:40:35 PDT"]
[Termination "FredyMatsuura won on time"]

1. d4 {[%clk 0:03:00.9]} 1... d5 {[%clk 0:02:58.9]} 2. Bf4 {[%clk 0:03:00.7]}
2... Bf5 {[%clk 0:02:52.8]} 3. e3 {[%clk 0:02:58.7]} 3... e6 {[%clk 0:02:50]} 4.
Nf3 {[%clk 0:02:55.2]} 4... Bd6 {[%clk 0:02:48.2]} 5. Bxd6 {[%clk 0:02:38.9]}
5... Qxd6 {[%clk 0:02:47.5]} 6. Nbd2 {[%clk 0:02:32.3]} 6... h6 {[%clk
0:02:45.2]} 7. c4 {[%clk 0:02:32.5]} 7... c6 {[%clk 0:02:43.8]} 8. Qb3 {[%clk
0:02:31.3]} 8... Qc7 {[%clk 0:02:29.6]} 9. Rc1 {[%clk 0:02:29.6]} 9... Qb6
{[%clk 0:02:28.2]} 10. Qa3 {[%clk 0:02:25.7]} 10... Nf6 {[%clk 0:02:22.2]} 11.
Be2 {[%clk 0:02:20.8]} 11... Nbd7 {[%clk 0:02:16]} 12. O-O {[%clk 0:02:19.4]}
12... Qd8 {[%clk 0:02:15.6]} 13. Qb4 {[%clk 0:01:59.9]} 13... Rb8 {[%clk
0:02:10.7]} 14. Qa3 {[%clk 0:01:56.8]} 14... a6 {[%clk 0:02:03.6]} 15. c5 {[%clk
0:01:31.6]} 15... O-O {[%clk 0:02:00.5]} 16. b4 {[%clk 0:01:32.2]} 16... Qe7
{[%clk 0:01:58.1]} 17. Qb2 {[%clk 0:01:28.6]} 17... Ne4 {[%clk 0:01:56.8]} 18.
a4 {[%clk 0:01:28]} 18... Rfe8 {[%clk 0:01:50.8]} 19. b5 {[%clk 0:01:27.5]}
19... axb5 {[%clk 0:01:50.5]} 20. axb5 {[%clk 0:01:28.4]} 20... Nxd2 {[%clk
0:01:48.8]} 21. Qxd2 {[%clk 0:01:21.4]} 21... e5 {[%clk 0:01:48.9]} 22. b6
{[%clk 0:00:39.1]} 22... exd4 {[%clk 0:01:45.8]} 23. Qxd4 {[%clk 0:00:38.7]}
23... Ra8 {[%clk 0:01:33.6]} 24. Qf4 {[%clk 0:00:36.9]} 24... Be4 {[%clk
0:01:29.4]} 25. Qc7 {[%clk 0:00:36.4]} 25... Rab8 {[%clk 0:01:25.6]} 26. Nd4
{[%clk 0:00:15.2]} 26... Rec8 {[%clk 0:01:25.2]} 27. Qg3 {[%clk 0:00:08.8]}
27... Nxc5 {[%clk 0:01:23.9]} 28. Bg4 {[%clk 0:00:05.5]} 28... Re8 {[%clk
0:01:16.8]} 29. Bf5 {[%clk 0:00:05.5]} 29... Na4 {[%clk 0:01:08.8]} 30. Bxe4
{[%clk 0:00:05]} 30... Qxe4 {[%clk 0:01:08.5]} 31. Rb1 {[%clk 0:00:02.8]} 31...
Nc3 {[%clk 0:01:06.5]} 32. Rb2 {[%clk 0:00:03.2]} 32... c5 {[%clk 0:01:00.4]}
33. Nb3 {[%clk 0:00:01.7]} 33... Rbc8 {[%clk 0:00:56.4]} 0-1

[Event "*** Titled Tuesday Blitz"]
[Site "Chess.com"]
[Date "2020.10.20"]
[Round "4"]
[White "Markov_Mikhail"]
[Black "Sychev_Klementy"]
[Result "0-1"]
[WhiteElo "2675"]
[BlackElo "2877"]
[TimeControl "180+1"]
[EndTime "10:40:37 PDT"]
[Termination "Sychev_Klementy won by resignation"]

1. c4 {[%clk 0:03:00.9]} 1... e6 {[%clk 0:02:56.1]} 2. Nf3 {[%clk 0:03:00.8]}
2... d5 {[%clk 0:02:55]} 3. g3 {[%clk 0:03:01.2]} 3... Nf6 {[%clk 0:02:54.9]} 4.
Bg2 {[%clk 0:03:01.4]} 4... Be7 {[%clk 0:02:55.5]} 5. O-O {[%clk 0:03:01.4]}
5... O-O {[%clk 0:02:56.1]} 6. d4 {[%clk 0:03:02]} 6... dxc4 {[%clk 0:02:56.1]}
7. Nbd2 {[%clk 0:03:02.3]} 7... b5 {[%clk 0:02:53.6]} 8. a4 {[%clk 0:03:02.1]}
8... c6 {[%clk 0:02:53.4]} 9. Qc2 {[%clk 0:03:02.5]} 9... Bb7 {[%clk 0:02:48.9]}
10. b3 {[%clk 0:03:02.7]} 10... cxb3 {[%clk 0:02:46.4]} 11. Nxb3 {[%clk
0:03:03.6]} 11... Nbd7 {[%clk 0:02:43.7]} 12. Rd1 {[%clk 0:03:03.3]} 12... a5
{[%clk 0:02:39.2]} 13. Ne5 {[%clk 0:02:50.2]} 13... Nxe5 {[%clk 0:02:22.7]} 14.
dxe5 {[%clk 0:02:50]} 14... Nd5 {[%clk 0:02:21.9]} 15. Bb2 {[%clk 0:02:18.3]}
15... bxa4 {[%clk 0:01:27.1]} 16. Nc5 {[%clk 0:01:52.7]} 16... Qc8 {[%clk
0:01:13.3]} 17. Nxa4 {[%clk 0:01:31.6]} 17... Ba6 {[%clk 0:01:00.1]} 18. Bf3
{[%clk 0:01:12.5]} 18... Rb8 {[%clk 0:00:55.3]} 19. Bd4 {[%clk 0:01:09.7]} 19...
Rb4 {[%clk 0:00:51.4]} 20. Nc5 {[%clk 0:01:09]} 20... Rc4 {[%clk 0:00:47.7]} 21.
Qxc4 {[%clk 0:00:54.4]} 21... Bxc4 {[%clk 0:00:47.2]} 22. Rxa5 {[%clk
0:00:55.3]} 22... Qc7 {[%clk 0:00:31.3]} 23. Rda1 {[%clk 0:00:54.9]} 23... Rb8
{[%clk 0:00:26.1]} 24. Ra7 {[%clk 0:00:51.6]} 24... Rb1+ {[%clk 0:00:22.3]} 25.
Kg2 {[%clk 0:00:51.9]} 25... Rxa1 {[%clk 0:00:19.2]} 26. Rxc7 {[%clk 0:00:52.1]}
26... Nxc7 {[%clk 0:00:19.4]} 27. Bxa1 {[%clk 0:00:52.6]} 27... Bxc5 {[%clk
0:00:19.9]} 28. Bxc6 {[%clk 0:00:52.9]} 28... Bxe2 {[%clk 0:00:19.5]} 29. f4
{[%clk 0:00:53.5]} 29... Bc4 {[%clk 0:00:19.4]} 30. Ba4 {[%clk 0:00:51.3]} 30...
Nd5 {[%clk 0:00:19.2]} 31. g4 {[%clk 0:00:50.7]} 31... Ne3+ {[%clk 0:00:19.2]}
32. Kf3 {[%clk 0:00:50.8]} 32... Bd5+ {[%clk 0:00:19.4]} 33. Kg3 {[%clk
0:00:50.6]} 33... Nf1+ {[%clk 0:00:19.3]} 34. Kh4 {[%clk 0:00:50.8]} 34... Nxh2
{[%clk 0:00:18.5]} 35. f5 {[%clk 0:00:51.2]} 35... Nf3+ {[%clk 0:00:18.3]} 36.
Kg3 {[%clk 0:00:51.3]} 36... Bd4 {[%clk 0:00:18.8]} 0-1

[Event "*** Titled Tuesday Blitz"]
[Site "Chess.com"]
[Date "2020.10.20"]
[Round "4"]
[White "Pavalamalli"]
[Black "Piotrek1979"]
[Result "1-0"]
[WhiteElo "2292"]
[BlackElo "2408"]
[TimeControl "180+1"]
[EndTime "10:40:38 PDT"]
[Termination "Pavalamalli won on time"]

1. b3 {[%clk 0:03:00.4]} 1... d5 {[%clk 0:02:57.1]} 2. Bb2 {[%clk 0:03:00.6]}
2... Nf6 {[%clk 0:02:57.1]} 3. g3 {[%clk 0:03:00.9]} 3... Bf5 {[%clk 0:02:56.6]}
4. Bg2 {[%clk 0:03:00.8]} 4... e6 {[%clk 0:02:56.7]} 5. Nf3 {[%clk 0:03:00.8]}
5... h6 {[%clk 0:02:55.8]} 6. O-O {[%clk 0:03:00.2]} 6... Be7 {[%clk 0:02:55.8]}
7. d3 {[%clk 0:03:00.3]} 7... O-O {[%clk 0:02:55]} 8. Nbd2 {[%clk 0:03:00.7]}
8... Bh7 {[%clk 0:02:53.2]} 9. Re1 {[%clk 0:03:00.8]} 9... c5 {[%clk 0:02:50.2]}
10. e4 {[%clk 0:03:00.8]} 10... Nc6 {[%clk 0:02:49.1]} 11. e5 {[%clk 0:02:58.2]}
11... Nd7 {[%clk 0:02:47.5]} 12. Nf1 {[%clk 0:02:57.5]} 12... b5 {[%clk
0:02:44.2]} 13. Ne3 {[%clk 0:02:57.1]} 13... a5 {[%clk 0:02:26.4]} 14. Ng4
{[%clk 0:02:54.1]} 14... a4 {[%clk 0:02:22.5]} 15. h4 {[%clk 0:02:49.2]} 15...
a3 {[%clk 0:01:55.6]} 16. Bc1 {[%clk 0:02:47.1]} 16... h5 {[%clk 0:01:39.1]} 17.
Ngh2 {[%clk 0:02:44.1]} 17... b4 {[%clk 0:01:34.3]} 18. Bf4 {[%clk 0:02:41.3]}
18... Rc8 {[%clk 0:01:30.9]} 19. Ng5 {[%clk 0:02:39.7]} 19... Bg6 {[%clk
0:01:13.2]} 20. Bf3 {[%clk 0:02:38.7]} 20... Bxg5 {[%clk 0:00:44.3]} 21. hxg5
{[%clk 0:02:22.4]} 21... Qe8 {[%clk 0:00:43.3]} 22. Bxh5 {[%clk 0:02:20.2]}
22... f5 {[%clk 0:00:43.1]} 23. Bxg6 {[%clk 0:02:10.5]} 23... Qxg6 {[%clk
0:00:44]} 24. Nf3 {[%clk 0:02:10.4]} 24... Nd4 {[%clk 0:00:43.5]} 25. Nh4 {[%clk
0:02:08.9]} 25... Qh7 {[%clk 0:00:37.5]} 26. g6 {[%clk 0:02:06.8]} 26... Qh8
{[%clk 0:00:37.3]} 27. Kg2 {[%clk 0:02:06.3]} 27... Rfe8 {[%clk 0:00:12.3]} 28.
Rh1 {[%clk 0:02:04.4]} 28... Nf8 {[%clk 0:00:12.1]} 29. Nf3 {[%clk 0:01:51.5]}
29... Nxg6 {[%clk 0:00:08.9]} 30. Rxh8+ {[%clk 0:01:49.6]} 30... Nxh8 {[%clk
0:00:09.8]} 31. Ng5 {[%clk 0:01:46.1]} 31... Nf7 {[%clk 0:00:08.9]} 32. Qh5
{[%clk 0:01:43.1]} 32... Nxg5 {[%clk 0:00:06.3]} 33. Bxg5 {[%clk 0:01:42.4]}
33... f4 {[%clk 0:00:02.2]} 34. Rh1 {[%clk 0:01:39.3]} 34... f3+ {[%clk
0:00:03.1]} 35. Kf1 {[%clk 0:01:36.9]} 35... Rf8 {[%clk 0:00:04]} 36. Qh7+
{[%clk 0:01:32.6]} 36... Kf7 {[%clk 0:00:04]} 37. Bf6 {[%clk 0:01:28.7]} 37...
Rg8 {[%clk 0:00:03.3]} 38. Rh6 {[%clk 0:01:17.9]} 38... Nf5 {[%clk 0:00:03.1]}
39. Qg6+ {[%clk 0:01:14.3]} 39... Kf8 {[%clk 0:00:02.8]} 40. Rh7 {[%clk
0:01:11.4]} 1-0

[Event "*** Titled Tuesday Blitz"]
[Site "Chess.com"]
[Date "2020.10.20"]
[Round "4"]
[White "elegant285"]
[Black "MPGM"]
[Result "0-1"]
[WhiteElo "2305"]
[BlackElo "2447"]
[TimeControl "180+1"]
[EndTime "10:40:39 PDT"]
[Termination "MPGM won by resignation"]

1. d4 {[%clk 0:03:00.9]} 1... f5 {[%clk 0:02:54.6]} 2. Bg5 {[%clk 0:02:58.5]}
2... h6 {[%clk 0:02:45.1]} 3. Bh4 {[%clk 0:02:57.7]} 3... g5 {[%clk 0:02:45.6]}
4. e3 {[%clk 0:02:53.1]} 4... Nf6 {[%clk 0:02:41.9]} 5. Bg3 {[%clk 0:02:53.2]}
5... Bg7 {[%clk 0:02:38.6]} 6. h4 {[%clk 0:02:53]} 6... g4 {[%clk 0:02:36.6]} 7.
Ne2 {[%clk 0:02:52.8]} 7... Nh5 {[%clk 0:02:30.5]} 8. Nbc3 {[%clk 0:02:46.2]}
8... d6 {[%clk 0:02:21.3]} 9. Nd5 {[%clk 0:02:26.6]} 9... O-O {[%clk 0:02:16.6]}
10. Ndf4 {[%clk 0:02:23.2]} 10... Nxg3 {[%clk 0:02:12.5]} 11. Nxg3 {[%clk
0:02:22.9]} 11... e5 {[%clk 0:02:05.3]} 12. Bc4+ {[%clk 0:02:19.2]} 12... Kh7
{[%clk 0:02:01]} 13. Ne6 {[%clk 0:02:10.4]} 13... Bxe6 {[%clk 0:01:57.1]} 14.
Bxe6 {[%clk 0:02:11.3]} 14... f4 {[%clk 0:01:51.1]} 15. Nh5 {[%clk 0:01:49]}
15... g3 {[%clk 0:01:41.8]} 16. fxg3 {[%clk 0:01:27.7]} 16... fxe3 {[%clk
0:01:34]} 17. Qd3+ {[%clk 0:01:27.4]} 17... Kh8 {[%clk 0:01:32.6]} 18. Qg6
{[%clk 0:01:27.3]} 18... Qe7 {[%clk 0:01:22.3]} 19. dxe5 {[%clk 0:01:27]} 19...
Nc6 {[%clk 0:01:05.8]} 20. exd6 {[%clk 0:01:08.2]} 20... cxd6 {[%clk 0:00:59.7]}
21. c3 {[%clk 0:00:29.7]} 21... Ne5 {[%clk 0:00:51.3]} 22. Qxg7+ {[%clk
0:00:29]} 22... Qxg7 {[%clk 0:00:49.8]} 23. Nxg7 {[%clk 0:00:29.9]} 23... Kxg7
{[%clk 0:00:49.6]} 24. Ke2 {[%clk 0:00:20.3]} 24... Rf2+ {[%clk 0:00:48.3]} 25.
Kxe3 {[%clk 0:00:20.4]} 25... Rxg2 {[%clk 0:00:40.9]} 26. b4 {[%clk 0:00:20]}
26... Re8 {[%clk 0:00:37.2]} 27. Bd5 {[%clk 0:00:18.4]} 27... Rxg3+ {[%clk
0:00:32.3]} 28. Kf2 {[%clk 0:00:16.7]} 28... Rxc3 {[%clk 0:00:31.5]} 29. Rac1
{[%clk 0:00:16.7]} 29... Nd3+ {[%clk 0:00:30.2]} 0-1